[Event "Titled Tuesday Blitz November 14 Late 2023"]
[White "Ongut, Tamas Gunes"]
[Black "FM_Kappeler"]
[WhiteFideId "770280"]
[WhiteElo "2532"]
[BlackElo "2342"]
[Result "1-0"]
[Round "10"]
[TimeControl "180+1"]
[Date "2023.11.14"]
[WhiteClock "0:02:23"]
[BlackClock "0:01:30"]
[Board "50"]

1. c4 {[%clk 0:03:00]}  e6 {[%clk 0:02:58]} 2. Nc3 {[%clk 0:03:00]}  d5 {[%clk 0:02:58]} 3. d4 {[%clk 0:02:58]}  c5 {[%clk 0:02:53]} 4. e3 {[%clk 0:02:57]}  Nc6 {[%clk 0:02:52]} 5. Nf3 {[%clk 0:02:56]}  Nf6 {[%clk 0:02:53]} 6. a3 {[%clk 0:02:56]}  Ne4 {[%clk 0:02:46]} 7. Qc2 {[%clk 0:02:40]}  Nxc3 {[%clk 0:02:45]} 8. bxc3 {[%clk 0:02:40]}  Be7 {[%clk 0:02:44]} 9. cxd5 {[%clk 0:02:35]}  exd5 {[%clk 0:02:43]} 10. Bd3 {[%clk 0:02:35]}  g6 {[%clk 0:02:34]} 11. dxc5 {[%clk 0:02:32]}  O-O {[%clk 0:02:29]} 12. h4 {[%clk 0:02:31]}  Bg4 {[%clk 0:02:28]} 13. h5 {[%clk 0:02:31]}  Bxf3 {[%clk 0:02:25]} 14. gxf3 {[%clk 0:02:30]}  Ne5 {[%clk 0:02:25]} 15. hxg6 {[%clk 0:02:28]}  Nxd3+ {[%clk 0:02:25]} 16. Qxd3 {[%clk 0:02:28]}  hxg6 {[%clk 0:02:11]} 17. c4 {[%clk 0:02:24]}  dxc4 {[%clk 0:01:53]} 18. Bb2 {[%clk 0:02:24]}  Bf6 {[%clk 0:01:30]} 19. Qxd8 {[%clk 0:02:23]} 1-0


[Site "https://www.chess.com"]

[Event "Titled Tuesday Blitz November 14 Late 2023"]
[White "Marcziter, Dmitrii"]
[Black "Sanchez Alvares, Kelvin Antonio"]
[WhiteFideId "13900765"]
[BlackFideId "3906680"]
[WhiteElo "2438"]
[BlackElo "2562"]
[Result "0-1"]
[Round "10"]
[TimeControl "180+1"]
[Date "2023.11.14"]
[WhiteClock "0:00:10"]
[BlackClock "0:00:57"]
[Board "53"]

1. d4 {[%clk 0:03:00]}  Nf6 {[%clk 0:02:47]} 2. c4 {[%clk 0:03:00]}  e6 {[%clk 0:02:47]} 3. Nf3 {[%clk 0:03:00]}  b6 {[%clk 0:02:47]} 4. a3 {[%clk 0:03:00]}  Bb7 {[%clk 0:02:45]} 5. Nc3 {[%clk 0:02:59]}  d5 {[%clk 0:02:44]} 6. cxd5 {[%clk 0:02:57]}  exd5 {[%clk 0:02:44]} 7. Bf4 {[%clk 0:02:51]}  a6 {[%clk 0:02:44]} 8. e3 {[%clk 0:02:51]}  Bd6 {[%clk 0:02:43]} 9. Ne5 {[%clk 0:02:50]}  O-O {[%clk 0:02:43]} 10. Bd3 {[%clk 0:02:47]}  Qe7 {[%clk 0:02:40]} 11. O-O {[%clk 0:02:45]}  c5 {[%clk 0:02:40]} 12. h3 {[%clk 0:02:39]}  Nc6 {[%clk 0:02:39]} 13. Nxc6 {[%clk 0:02:37]}  Bxc6 {[%clk 0:02:39]} 14. Bxd6 {[%clk 0:02:37]}  Qxd6 {[%clk 0:02:40]} 15. Qe2 {[%clk 0:02:20]}  c4 {[%clk 0:02:39]} 16. Bf5 {[%clk 0:02:17]}  g6 {[%clk 0:02:38]} 17. Bc2 {[%clk 0:02:16]}  b5 {[%clk 0:02:33]} 18. Rad1 {[%clk 0:02:15]}  Rfe8 {[%clk 0:02:29]} 19. Qf3 {[%clk 0:02:12]}  a5 {[%clk 0:02:29]} 20. Rfe1 {[%clk 0:02:00]}  b4 {[%clk 0:02:29]} 21. axb4 {[%clk 0:01:59]}  axb4 {[%clk 0:02:29]} 22. Ne2 {[%clk 0:01:56]}  Ra2 {[%clk 0:02:26]} 23. Rb1 {[%clk 0:01:51]}  Bd7 {[%clk 0:02:16]} 24. Nc1 {[%clk 0:01:47]}  Ra7 {[%clk 0:02:13]} 25. Ne2 {[%clk 0:01:39]}  b3 {[%clk 0:02:10]} 26. Bd1 {[%clk 0:01:37]}  Bf5 {[%clk 0:02:11]} 27. Rc1 {[%clk 0:01:36]}  Be4 {[%clk 0:02:08]} 28. Qf4 {[%clk 0:01:29]}  Qxf4 {[%clk 0:02:07]} 29. Nxf4 {[%clk 0:01:29]}  Ra2 {[%clk 0:02:02]} 30. Re2 {[%clk 0:01:23]}  g5 {[%clk 0:02:01]} 31. f3 {[%clk 0:01:18]}  Bf5 {[%clk 0:01:53]} 32. g4 {[%clk 0:01:18]}  gxf4 {[%clk 0:01:52]} 33. gxf5 {[%clk 0:01:16]}  Rxe3 {[%clk 0:01:51]} 34. Rb1 {[%clk 0:01:06]}  Rd3 {[%clk 0:01:43]} 35. Rg2+ {[%clk 0:01:02]}  Kf8 {[%clk 0:01:39]} 36. Be2 {[%clk 0:00:55]}  Rxd4 {[%clk 0:01:39]} 37. Bf1 {[%clk 0:00:54]}  h6 {[%clk 0:01:30]} 38. Kf2 {[%clk 0:00:53]}  c3 {[%clk 0:01:24]} 39. Ke1 {[%clk 0:00:51]}  c2 {[%clk 0:01:22]} 40. Rc1 {[%clk 0:00:51]}  Rxb2 {[%clk 0:01:16]} 41. Rd2 {[%clk 0:00:44]}  Ra4 {[%clk 0:01:12]} 42. Bd3 {[%clk 0:00:42]}  Rb1 {[%clk 0:01:09]} 43. Rxc2 {[%clk 0:00:38]}  bxc2 {[%clk 0:01:07]} 44. Kd2 {[%clk 0:00:37]}  Rxc1 {[%clk 0:01:06]} 45. Kxc1 {[%clk 0:00:38]}  Ra1+ {[%clk 0:01:03]} 46. Kxc2 {[%clk 0:00:38]}  Rh1 {[%clk 0:01:03]} 47. Kc3 {[%clk 0:00:37]}  Ke7 {[%clk 0:01:03]} 48. Kd4 {[%clk 0:00:37]}  Kd6 {[%clk 0:01:03]} 49. Be2 {[%clk 0:00:32]}  Rxh3 {[%clk 0:01:03]} 50. Bd1 {[%clk 0:00:31]}  Rh2 {[%clk 0:01:03]} 51. Bb3 {[%clk 0:00:30]}  h5 {[%clk 0:01:03]} 52. Ba4 {[%clk 0:00:18]}  h4 {[%clk 0:01:02]} 53. Be8 {[%clk 0:00:18]}  h3 {[%clk 0:01:01]} 54. Bxf7 {[%clk 0:00:18]}  Re2 {[%clk 0:00:58]} 55. Bg6 {[%clk 0:00:13]}  h2 {[%clk 0:00:57]} 56. Kd3 {[%clk 0:00:14]}  Re3+ {[%clk 0:00:57]} 57. Kd4 {[%clk 0:00:14]}  h1=Q {[%clk 0:00:57]} 58. Be8 {[%clk 0:00:10]}  Qd1# {[%clk 0:00:57]} 0-1


[Site "https://www.chess.com"]

[Event "Titled Tuesday Blitz November 14 Late 2023"]
[White "Golubenko, Valentina"]
[Black "Kovacsy, Barnabas"]
[WhiteFideId "4501993"]
[BlackFideId "769290"]
[WhiteElo "2393"]
[BlackElo "2520"]
[Result "1-0"]
[Round "10"]
[TimeControl "180+1"]
[Date "2023.11.14"]
[WhiteClock "0:00:04"]
[BlackClock "0:00:00"]
[Board "56"]

1. d4 {[%clk 0:03:00]}  Nf6 {[%clk 0:02:59]} 2. g3 {[%clk 0:03:00]}  g6 {[%clk 0:02:56]} 3. Bg2 {[%clk 0:03:00]}  d5 {[%clk 0:02:57]} 4. c4 {[%clk 0:03:00]}  c6 {[%clk 0:02:57]} 5. Nc3 {[%clk 0:02:59]}  Bg7 {[%clk 0:02:56]} 6. Nf3 {[%clk 0:02:59]}  O-O {[%clk 0:02:56]} 7. O-O {[%clk 0:02:59]}  dxc4 {[%clk 0:02:54]} 8. Ne5 {[%clk 0:02:58]}  Ng4 {[%clk 0:02:54]} 9. f4 {[%clk 0:02:49]}  Nxe5 {[%clk 0:02:49]} 10. fxe5 {[%clk 0:02:48]}  Na6 {[%clk 0:02:32]} 11. Bg5 {[%clk 0:02:33]}  Be6 {[%clk 0:02:24]} 12. e4 {[%clk 0:02:19]}  h6 {[%clk 0:02:04]} 13. Be3 {[%clk 0:02:18]}  Qb6 {[%clk 0:01:56]} 14. Qe2 {[%clk 0:02:15]}  c5 {[%clk 0:01:54]} 15. d5 {[%clk 0:02:03]}  Bd7 {[%clk 0:01:53]} 16. Qxc4 {[%clk 0:01:53]}  Rac8 {[%clk 0:01:37]} 17. Qe2 {[%clk 0:01:35]}  Bxe5 {[%clk 0:01:25]} 18. Bxh6 {[%clk 0:01:31]}  Bg7 {[%clk 0:01:25]} 19. Bxg7 {[%clk 0:01:23]}  Kxg7 {[%clk 0:01:26]} 20. Qf3 {[%clk 0:01:06]}  f6 {[%clk 0:01:21]} 21. Kh1 {[%clk 0:00:57]}  Rh8 {[%clk 0:01:20]} 22. e5 {[%clk 0:00:54]}  Rcf8 {[%clk 0:01:19]} 23. exf6+ {[%clk 0:00:45]}  Qxf6 {[%clk 0:01:05]} 24. Qe3 {[%clk 0:00:39]}  Bf5 {[%clk 0:00:53]} 25. g4 {[%clk 0:00:31]}  Qd6 {[%clk 0:00:53]} 26. h3 {[%clk 0:00:18]}  Bxg4 {[%clk 0:00:16]} 27. Nb5 {[%clk 0:00:12]}  Rxh3+ {[%clk 0:00:10]} 28. Bxh3 {[%clk 0:00:09]}  Qxd5+ {[%clk 0:00:10]} 29. Bg2 {[%clk 0:00:09]}  Qh5+ {[%clk 0:00:10]} 30. Kg1 {[%clk 0:00:08]}  Bf5 {[%clk 0:00:07]} 31. Qe5+ {[%clk 0:00:08]}  Kf7 {[%clk 0:00:07]} 32. Bd5+ {[%clk 0:00:07]}  Ke8 {[%clk 0:00:07]} 33. Nc7+ {[%clk 0:00:05]}  Nxc7 {[%clk 0:00:06]} 34. Qxc7 {[%clk 0:00:06]}  Qg4+ {[%clk 0:00:06]} 35. Bg2 {[%clk 0:00:06]}  Qd4+ {[%clk 0:00:07]} 36. Rf2 {[%clk 0:00:06]}  Bd3 {[%clk 0:00:00]} 37. Qg3 {[%clk 0:00:04]} 1-0


[Site "https://www.chess.com"]

[Event "Titled Tuesday Blitz November 14 Late 2023"]
[White "Erzhanov, Arman"]
[Black "Laskakis, Konstantinos"]
[WhiteFideId "4138821"]
[BlackFideId "42134374"]
[WhiteElo "2502"]
[BlackElo "2365"]
[Result "1-0"]
[Round "10"]
[TimeControl "180+1"]
[Date "2023.11.14"]
[WhiteClock "0:01:30"]
[BlackClock "0:00:16"]
[Board "58"]

1. e4 {[%clk 0:02:45]}  e5 {[%clk 0:02:59]} 2. Nf3 {[%clk 0:02:43]}  Nc6 {[%clk 0:03:00]} 3. Be2 {[%clk 0:02:42]}  Nf6 {[%clk 0:02:58]} 4. d3 {[%clk 0:02:42]}  g6 {[%clk 0:02:57]} 5. O-O {[%clk 0:02:42]}  Bg7 {[%clk 0:02:57]} 6. Nbd2 {[%clk 0:02:43]}  O-O {[%clk 0:02:58]} 7. c3 {[%clk 0:02:43]}  d6 {[%clk 0:02:56]} 8. Re1 {[%clk 0:02:44]}  Nh5 {[%clk 0:02:43]} 9. b4 {[%clk 0:02:43]}  Ne7 {[%clk 0:02:24]} 10. g3 {[%clk 0:02:40]}  Bh3 {[%clk 0:02:08]} 11. Ng5 {[%clk 0:02:39]}  Bd7 {[%clk 0:02:07]} 12. Bxh5 {[%clk 0:02:37]}  f6 {[%clk 0:01:37]} 13. Qb3+ {[%clk 0:02:32]}  d5 {[%clk 0:01:34]} 14. exd5 {[%clk 0:02:28]}  gxh5 {[%clk 0:01:23]} 15. d6+ {[%clk 0:02:27]}  Kh8 {[%clk 0:01:21]} 16. dxe7 {[%clk 0:02:23]}  Qxe7 {[%clk 0:01:20]} 17. Ngf3 {[%clk 0:02:20]}  Be6 {[%clk 0:01:15]} 18. Qd1 {[%clk 0:02:19]}  Bg4 {[%clk 0:01:13]} 19. Kg2 {[%clk 0:02:13]}  Rad8 {[%clk 0:01:12]} 20. h3 {[%clk 0:02:09]}  Bf5 {[%clk 0:01:07]} 21. Ne4 {[%clk 0:02:09]}  Qd7 {[%clk 0:01:01]} 22. Nc5 {[%clk 0:02:01]}  Bxh3+ {[%clk 0:01:00]} 23. Kh2 {[%clk 0:02:00]}  Qf5 {[%clk 0:00:55]} 24. Nh4 {[%clk 0:02:00]}  Qc8 {[%clk 0:00:51]} 25. Qxh5 {[%clk 0:02:00]}  Bg4 {[%clk 0:00:43]} 26. Ng6+ {[%clk 0:01:54]}  Kg8 {[%clk 0:00:43]} 27. Ne7+ {[%clk 0:01:54]}  Kh8 {[%clk 0:00:43]} 28. Qh4 {[%clk 0:01:33]}  Qa8 {[%clk 0:00:21]} 29. Qxg4 {[%clk 0:01:31]}  b6 {[%clk 0:00:17]} 30. Ne6 {[%clk 0:01:31]}  Rxd3 {[%clk 0:00:16]} 31. Qxg7# {[%clk 0:01:30]} 1-0


[Site "https://www.chess.com"]

[Event "Titled Tuesday Blitz November 14 Late 2023"]
[White "Avalos Parra, Joao"]
[Black "Przybylski, Wojciech"]
[WhiteFideId "3402541"]
[BlackFideId "1117599"]
[WhiteElo "2357"]
[BlackElo "2498"]
[Result "1-0"]
[Round "10"]
[TimeControl "180+1"]
[Date "2023.11.14"]
[WhiteClock "0:00:25"]
[BlackClock "0:00:01"]
[Board "59"]

1. d4 {[%clk 0:03:00]}  Nf6 {[%clk 0:02:57]} 2. c4 {[%clk 0:02:57]}  e6 {[%clk 0:02:57]} 3. Nf3 {[%clk 0:02:56]}  d5 {[%clk 0:02:55]} 4. Nc3 {[%clk 0:02:54]}  Be7 {[%clk 0:02:56]} 5. Bf4 {[%clk 0:02:54]}  O-O {[%clk 0:02:55]} 6. e3 {[%clk 0:02:54]}  Nbd7 {[%clk 0:02:55]} 7. Be2 {[%clk 0:02:54]}  b6 {[%clk 0:02:55]} 8. cxd5 {[%clk 0:02:54]}  exd5 {[%clk 0:02:54]} 9. O-O {[%clk 0:02:53]}  Bb7 {[%clk 0:02:53]} 10. Rc1 {[%clk 0:02:53]}  c6 {[%clk 0:02:53]} 11. h3 {[%clk 0:02:51]}  Rc8 {[%clk 0:02:52]} 12. Ne5 {[%clk 0:02:47]}  Re8 {[%clk 0:02:51]} 13. Bd3 {[%clk 0:02:45]}  Nf8 {[%clk 0:02:50]} 14. Bg5 {[%clk 0:02:42]}  Ne6 {[%clk 0:02:49]} 15. Bh4 {[%clk 0:02:41]}  g6 {[%clk 0:02:42]} 16. f4 {[%clk 0:02:41]}  Ng7 {[%clk 0:02:37]} 17. f5 {[%clk 0:02:40]}  Rf8 {[%clk 0:02:14]} 18. fxg6 {[%clk 0:02:36]}  fxg6 {[%clk 0:02:14]} 19. Qe2 {[%clk 0:02:30]}  Rc7 {[%clk 0:01:46]} 20. Rf2 {[%clk 0:01:59]}  Bc8 {[%clk 0:01:01]} 21. Rcf1 {[%clk 0:01:58]}  Bf5 {[%clk 0:00:59]} 22. Bg3 {[%clk 0:01:30]}  Rc8 {[%clk 0:00:55]} 23. Ba6 {[%clk 0:01:28]}  Nfh5 {[%clk 0:00:48]} 24. Bh2 {[%clk 0:01:25]}  Bh4 {[%clk 0:00:41]} 25. Rf3 {[%clk 0:01:20]}  Rc7 {[%clk 0:00:33]} 26. g4 {[%clk 0:01:16]}  Qg5 {[%clk 0:00:33]} 27. Kh1 {[%clk 0:01:12]}  Kh8 {[%clk 0:00:19]} 28. gxh5 {[%clk 0:01:00]}  Nxh5 {[%clk 0:00:18]} 29. Bd3 {[%clk 0:01:00]}  Rg7 {[%clk 0:00:06]} 30. Rg1 {[%clk 0:00:58]}  Qf6 {[%clk 0:00:05]} 31. Bxf5 {[%clk 0:00:58]}  gxf5 {[%clk 0:00:04]} 32. Rxg7 {[%clk 0:00:57]}  Nxg7 {[%clk 0:00:05]} 33. Rf1 {[%clk 0:00:53]}  Qe6 {[%clk 0:00:05]} 34. Bf4 {[%clk 0:00:49]}  Be7 {[%clk 0:00:05]} 35. Rg1 {[%clk 0:00:48]}  c5 {[%clk 0:00:04]} 36. Qg2 {[%clk 0:00:45]}  Bf6 {[%clk 0:00:04]} 37. Qxd5 {[%clk 0:00:45]}  Qe7 {[%clk 0:00:04]} 38. Qf3 {[%clk 0:00:42]}  Rg8 {[%clk 0:00:04]} 39. Nd5 {[%clk 0:00:42]}  Qf8 {[%clk 0:00:03]} 40. Nd7 {[%clk 0:00:41]}  Qf7 {[%clk 0:00:04]} 41. N7xf6 {[%clk 0:00:41]}  Rd8 {[%clk 0:00:04]} 42. Be5 {[%clk 0:00:42]}  Ne6 {[%clk 0:00:03]} 43. Ne8+ {[%clk 0:00:31]}  Ng7 {[%clk 0:00:02]} 44. Bxg7+ {[%clk 0:00:30]}  Kg8 {[%clk 0:00:03]} 45. Bf6+ {[%clk 0:00:29]}  Kf8 {[%clk 0:00:02]} 46. Bxd8 {[%clk 0:00:29]}  Qh5 {[%clk 0:00:01]} 47. Be7+ {[%clk 0:00:27]}  Kf7 {[%clk 0:00:01]} 48. Qxh5+ {[%clk 0:00:28]}  Ke6 {[%clk 0:00:01]} 49. Qh6+ {[%clk 0:00:26]}  Kd7 {[%clk 0:00:01]} 50. Qd6+ {[%clk 0:00:26]}  Kxe8 {[%clk 0:00:01]} 51. Bf6 {[%clk 0:00:25]}  Kf7 {[%clk 0:00:01]} 52. Qe7# {[%clk 0:00:25]} 1-0


[Site "https://www.chess.com"]

[Event "Titled Tuesday Blitz November 14 Late 2023"]
[White "The_Straightforward_Rook"]
[Black "Balla, Tamas-Kristof"]
[BlackFideId "1208497"]
[WhiteElo "2542"]
[BlackElo "2390"]
[Result "1-0"]
[Round "10"]
[TimeControl "180+1"]
[Date "2023.11.14"]
[WhiteClock "0:00:37"]
[BlackClock "0:00:12"]
[Board "65"]

1. e4 {[%clk 0:02:57]}  c5 {[%clk 0:03:00]} 2. c3 {[%clk 0:02:56]}  Nf6 {[%clk 0:02:59]} 3. e5 {[%clk 0:02:55]}  Nd5 {[%clk 0:03:00]} 4. Nf3 {[%clk 0:02:56]}  Nc6 {[%clk 0:03:00]} 5. Bc4 {[%clk 0:02:56]}  Nb6 {[%clk 0:02:59]} 6. Bb3 {[%clk 0:02:56]}  d5 {[%clk 0:02:58]} 7. exd6 {[%clk 0:02:56]}  Qxd6 {[%clk 0:02:58]} 8. O-O {[%clk 0:02:53]}  g6 {[%clk 0:02:54]} 9. Na3 {[%clk 0:02:51]}  Bg7 {[%clk 0:02:46]} 10. d4 {[%clk 0:02:50]}  O-O {[%clk 0:02:39]} 11. Nb5 {[%clk 0:02:49]}  Qd8 {[%clk 0:02:22]} 12. dxc5 {[%clk 0:02:49]}  Nd7 {[%clk 0:02:22]} 13. Be3 {[%clk 0:02:47]}  Qa5 {[%clk 0:02:12]} 14. a4 {[%clk 0:02:40]}  a6 {[%clk 0:02:07]} 15. Nbd4 {[%clk 0:02:36]}  Nxc5 {[%clk 0:01:57]} 16. Nxc6 {[%clk 0:02:36]}  bxc6 {[%clk 0:01:57]} 17. Bxf7+ {[%clk 0:02:36]}  Rxf7 {[%clk 0:01:44]} 18. b4 {[%clk 0:02:37]}  Qc7 {[%clk 0:01:35]} 19. Bxc5 {[%clk 0:02:37]}  Bxc3 {[%clk 0:01:33]} 20. Ra3 {[%clk 0:02:36]}  Bg7 {[%clk 0:01:31]} 21. Ng5 {[%clk 0:02:32]}  Rf5 {[%clk 0:01:25]} 22. Qb3+ {[%clk 0:02:20]}  Rd5 {[%clk 0:01:23]} 23. Re1 {[%clk 0:02:08]}  Bf6 {[%clk 0:01:16]} 24. Ne4 {[%clk 0:02:03]}  Bf5 {[%clk 0:01:04]} 25. Nc3 {[%clk 0:02:02]}  Bxc3 {[%clk 0:00:58]} 26. Qxc3 {[%clk 0:02:03]}  Rad8 {[%clk 0:00:58]} 27. Raa1 {[%clk 0:01:45]}  e5 {[%clk 0:00:52]} 28. h3 {[%clk 0:01:43]}  Qg7 {[%clk 0:00:49]} 29. Qc4 {[%clk 0:01:41]}  Kh8 {[%clk 0:00:49]} 30. Qxa6 {[%clk 0:01:41]}  Qf6 {[%clk 0:00:47]} 31. Qc4 {[%clk 0:01:38]}  Qg5 {[%clk 0:00:48]} 32. Kh1 {[%clk 0:01:28]}  Rd3 {[%clk 0:00:48]} 33. Re3 {[%clk 0:01:16]}  Rd2 {[%clk 0:00:40]} 34. Rxe5 {[%clk 0:01:12]}  Qf6 {[%clk 0:00:30]} 35. Rae1 {[%clk 0:01:09]}  Rd1 {[%clk 0:00:30]} 36. Re8+ {[%clk 0:00:57]}  Kg7 {[%clk 0:00:28]} 37. Re7+ {[%clk 0:00:41]}  Qxe7 {[%clk 0:00:25]} 38. Bxe7 {[%clk 0:00:42]}  Rxe1+ {[%clk 0:00:25]} 39. Kh2 {[%clk 0:00:42]}  Rxe7 {[%clk 0:00:26]} 40. Qxc6 {[%clk 0:00:40]}  Rf8 {[%clk 0:00:22]} 41. b5 {[%clk 0:00:38]}  Be4 {[%clk 0:00:22]} 42. Qc3+ {[%clk 0:00:37]}  Kg8 {[%clk 0:00:21]} 43. f3 {[%clk 0:00:38]}  Bd5 {[%clk 0:00:19]} 44. Qc5 {[%clk 0:00:37]}  Bb7 {[%clk 0:00:12]} 45. Qxe7 {[%clk 0:00:37]} 1-0


[Site "https://www.chess.com"]

[Event "Titled Tuesday Blitz November 14 Late 2023"]
[White "Skaric, Djuro"]
[Black "D`Arruda, Ricardo D."]
[WhiteFideId "934569"]
[BlackFideId "100692"]
[WhiteElo "2377"]
[BlackElo "2501"]
[Result "1/2-1/2"]
[Round "10"]
[TimeControl "180+1"]
[Date "2023.11.14"]
[WhiteClock "0:00:56"]
[BlackClock "0:00:45"]
[Board "67"]

1. g3 {[%clk 0:03:00]}  d5 {[%clk 0:02:11]} 2. Bg2 {[%clk 0:02:58]}  Nf6 {[%clk 0:02:08]} 3. d3 {[%clk 0:02:58]}  c6 {[%clk 0:02:08]} 4. Nf3 {[%clk 0:02:59]}  Nbd7 {[%clk 0:02:08]} 5. O-O {[%clk 0:02:59]}  e5 {[%clk 0:02:08]} 6. h3 {[%clk 0:03:00]}  Bd6 {[%clk 0:02:07]} 7. Nc3 {[%clk 0:03:00]}  O-O {[%clk 0:02:06]} 8. e4 {[%clk 0:03:01]}  Re8 {[%clk 0:02:06]} 9. Nd2 {[%clk 0:03:00]}  Nb6 {[%clk 0:01:58]} 10. g4 {[%clk 0:02:57]}  h6 {[%clk 0:01:56]} 11. Nb3 {[%clk 0:02:47]}  Be6 {[%clk 0:01:52]} 12. g5 {[%clk 0:02:47]}  hxg5 {[%clk 0:01:52]} 13. Bxg5 {[%clk 0:02:46]}  Be7 {[%clk 0:01:50]} 14. f4 {[%clk 0:02:46]}  exf4 {[%clk 0:01:48]} 15. Bxf4 {[%clk 0:02:45]}  dxe4 {[%clk 0:01:45]} 16. Nxe4 {[%clk 0:02:45]}  Nxe4 {[%clk 0:01:45]} 17. Bxe4 {[%clk 0:02:45]}  Nd5 {[%clk 0:01:42]} 18. Qh5 {[%clk 0:02:43]}  Nf6 {[%clk 0:01:42]} 19. Qf3 {[%clk 0:02:31]}  Qd7 {[%clk 0:01:39]} 20. Kh2 {[%clk 0:02:22]}  Bd5 {[%clk 0:01:35]} 21. Rae1 {[%clk 0:01:58]}  Bd6 {[%clk 0:01:35]} 22. Nd2 {[%clk 0:01:57]}  Re6 {[%clk 0:01:31]} 23. Bxd5 {[%clk 0:01:44]}  Nxd5 {[%clk 0:01:29]} 24. Bxd6 {[%clk 0:01:41]}  Qxd6+ {[%clk 0:01:30]} 25. Kh1 {[%clk 0:01:40]}  Nf6 {[%clk 0:01:16]} 26. Rg1 {[%clk 0:01:33]}  Rxe1 {[%clk 0:01:10]} 27. Rxe1 {[%clk 0:01:32]}  Re8 {[%clk 0:01:00]} 28. Rg1 {[%clk 0:01:31]}  g6 {[%clk 0:00:57]} 29. Rf1 {[%clk 0:01:23]}  Kg7 {[%clk 0:00:57]} 30. Ne4 {[%clk 0:01:19]}  Nxe4 {[%clk 0:00:48]} 31. Qxf7+ {[%clk 0:01:18]}  Kh6 {[%clk 0:00:48]} 32. Qxe8 {[%clk 0:01:09]}  Ng3+ {[%clk 0:00:48]} 33. Kg2 {[%clk 0:01:08]}  Nxf1 {[%clk 0:00:49]} 34. Qh8+ {[%clk 0:01:04]}  Kg5 {[%clk 0:00:49]} 35. Kxf1 {[%clk 0:01:02]}  Qf4+ {[%clk 0:00:49]} 36. Ke2 {[%clk 0:01:02]}  Qh2+ {[%clk 0:00:48]} 37. Kd1 {[%clk 0:01:02]}  Qg1+ {[%clk 0:00:46]} 38. Kd2 {[%clk 0:01:02]}  Qf2+ {[%clk 0:00:46]} 39. Kc3 {[%clk 0:01:01]}  Qc5+ {[%clk 0:00:46]} 40. Kb3 {[%clk 0:00:58]}  Qb5+ {[%clk 0:00:46]} 41. Kc3 {[%clk 0:00:58]}  Qc5+ {[%clk 0:00:46]} 42. Kd2 {[%clk 0:00:57]}  Qf2+ {[%clk 0:00:45]} 43. Kd1 {[%clk 0:00:56]}  Qf1+ {[%clk 0:00:45]} 44. Kd2 {[%clk 0:00:56]}  Qf2+ {[%clk 0:00:45]} 1/2-1/2


[Site "https://www.chess.com"]

[Event "Titled Tuesday Blitz November 14 Late 2023"]
[White "Martin Barcelo, Carles"]
[Black "Aarakan, J"]
[WhiteFideId "24561444"]
[BlackFideId "9946276"]
[WhiteElo "2457"]
[BlackElo "2251"]
[Result "1-0"]
[Round "10"]
[TimeControl "180+1"]
[Date "2023.11.14"]
[WhiteClock "0:02:49"]
[BlackClock "0:02:40"]
[Board "69"]

1. e4 {[%clk 0:02:55]}  c5 {[%clk 0:02:59]} 2. Nc3 {[%clk 0:02:54]}  Nc6 {[%clk 0:02:59]} 3. Nge2 {[%clk 0:02:54]}  Nf6 {[%clk 0:02:57]} 4. g3 {[%clk 0:02:55]}  g6 {[%clk 0:02:56]} 5. Bg2 {[%clk 0:02:55]}  Bg7 {[%clk 0:02:56]} 6. d3 {[%clk 0:02:55]}  O-O {[%clk 0:02:57]} 7. h4 {[%clk 0:02:56]}  e6 {[%clk 0:02:54]} 8. Bg5 {[%clk 0:02:53]}  h6 {[%clk 0:02:52]} 9. Be3 {[%clk 0:02:53]}  b6 {[%clk 0:02:49]} 10. Qd2 {[%clk 0:02:53]}  Kh7 {[%clk 0:02:49]} 11. h5 {[%clk 0:02:50]}  d5 {[%clk 0:02:48]} 12. hxg6+ {[%clk 0:02:49]}  fxg6 {[%clk 0:02:48]} 13. Bxh6 {[%clk 0:02:50]}  Ng8 {[%clk 0:02:40]} 14. Bg5+ {[%clk 0:02:49]} 1-0


[Site "https://www.chess.com"]